fUSD/lending_fUSD_20250609
["ID","MTS","AMOUNT","RATE_DAILY","PERIOD"]
[365135807,1749484252623,-490.0,0.00019506,2]
[365135808,1749484252633,-788.72,0.00019506,2]
[365135809,1749484252643,-490.0,0.00019506,2]
[365135810,1749484252652,-490.0,0.00019506,2]
[365135811,1749484252662,-490.0,0.00019506,2]
[365135812,1749484252671,-490.0,0.00019506,2]
[365135813,1749484252680,-420.0,0.00019506,2]
[365135814,1749484252690,-178.83388433,0.00019506,2]
[365135815,1749484252700,-490.0,0.00019506,2]
[365135816,1749484252711,-490.0,0.00019506,2]
[365135817,1749484252721,-634.97,0.00019506,2]
[365135818,1749484252731,-332.27442552,0.00019506,2]
[365135819,1749484252740,-501.48,0.00019506,2]
[365135820,1749484252750,-674.77,0.00019506,2]
[365135821,1749484252760,-490.0,0.00019506,2]
[365135822,1749484252770,-490.0,0.00019506,2]
[365135823,1749484252779,-490.0,0.00019506,2]
[365135824,1749484252789,-490.0,0.00019506,2]
[365135825,1749484252799,-490.0,0.00019506,2]
[365135826,1749484252808,-1025.63,0.00019506,2]
[365135827,1749484252817,-490.0,0.00019506,2]
[365135828,1749484252827,-490.0,0.00019506,2]
[365135829,1749484252836,-532.44,0.00019506,2]
[365135830,1749484252846,-460.15761496,0.00019506,2]
[365135831,1749484252856,-1059.32,0.00019506,2]
[365135832,1749484252865,-605.26,0.00019506,2]
[365135833,1749484252874,-539.33,0.00019506,2]
[365135834,1749484252884,-490.0,0.00019506,2]
[365135835,1749484252893,-1122.21,0.00019506,2]
[365135836,1749484252903,-761.38,0.00019506,2]
[365135837,1749484252912,-330.69032615,0.00019506,2]
[365135838,1749484252922,-1263.27,0.00019506,2]
[365135839,1749484252932,-841.18,0.00019506,2]
[365135840,1749484252941,-644.51,0.00019506,2]
[365135841,1749484252950,-490.0,0.00019506,2]
[365135842,1749484252961,-490.0,0.00019506,2]
[365135843,1749484252971,-540.66,0.00019506,2]
[365135844,1749484252981,-490.0,0.00019506,2]
[365135845,1749484252990,-490.0,0.00019506,2]
[365135846,1749484253000,-1209.55,0.00019506,2]
[365135847,1749484253010,-490.0,0.00019506,2]
[365135848,1749484253019,-490.0,0.00019506,2]
[365135849,1749484253030,-777.08,0.00019506,2]
[365135850,1749484253040,-711.1,0.00019506,2]
[365135851,1749484253050,-405.42095429,0.00019506,2]
[365135852,1749484253063,-490.0,0.00019506,2]
[365135853,1749484253072,-490.0,0.00019506,2]
[365135854,1749484253082,-737.16,0.00019506,2]
[365135855,1749484253092,-490.0,0.00019506,2]
[365135856,1749484253103,-635.65,0.00019506,2]
[365135857,1749484253112,-863.93,0.00019506,2]
[365135858,1749484253122,-490.0,0.00019506,2]
[365135859,1749484253132,-1075.53,0.00019506,2]
[365135860,1749484253143,-490.0,0.00019506,2]
[365135861,1749484253153,-490.0,0.00019506,2]
[365135862,1749484253162,-490.0,0.00019506,2]
[365135863,1749484253172,-490.0,0.00019506,2]
[365135864,1749484253181,-490.0,0.00019506,2]
[365135865,1749484253191,-1055.49,0.00019506,2]
[365135866,1749484253201,-510.41,0.00019506,2]
[365135867,1749484253211,-650.51,0.00019506,2]
[365135868,1749484253221,-490.0,0.00019506,2]
[365135869,1749484253232,-490.0,0.00019506,2]
[365135870,1749484253241,-490.0,0.00019506,2]
[365135871,1749484253251,-490.0,0.00019506,2]
[365135872,1749484253261,-490.0,0.00019506,2]
[365135873,1749484253271,-490.0,0.00019506,2]
[365135874,1749484253280,-490.0,0.00019506,2]
[365135875,1749484253289,-479.62184624,0.00019506,2]
[365135876,1749484253299,-490.0,0.00019506,2]
[365135877,1749484253309,-490.0,0.00019506,2]
[365135878,1749484253319,-492.55,0.00019506,2]
[365135879,1749484253328,-740.83,0.00019506,2]
[365135880,1749484253338,-490.0,0.00019506,2]
[365135881,1749484253347,-490.0,0.00019506,2]
[365135882,1749484253357,-490.0,0.00019506,2]
[365135883,1749484253367,-490.0,0.00019506,2]
[365135884,1749484253376,-772.44,0.00019506,2]
[365135885,1749484253386,-1484.04,0.00019506,2]
[365135886,1749484253395,-490.0,0.00019506,2]
[365135887,1749484253405,-490.0,0.00019506,2]
[365135888,1749484253415,-490.0,0.00019506,2]
[365135889,1749484253425,-818.39,0.00019506,2]
[365135890,1749484253434,-490.0,0.00019506,2]
[365135891,1749484253444,-490.0,0.00019506,2]
[365135892,1749484253454,-513.62,0.00019506,2]
[365135893,1749484253464,-490.0,0.00019506,2]
[365135894,1749484253474,-942.8,0.00019506,2]
[365135895,1749484253484,-490.0,0.00019506,2]
[365135896,1749484253494,-490.0,0.00019506,2]
[365135897,1749484253504,-490.0,0.00019506,2]
[365135898,1749484253513,-534.21,0.00019506,2]
[365135899,1749484253522,-490.0,0.00019506,2]
[365135900,1749484253531,-564.0,0.00019506,2]
[365135901,1749484253540,-490.0,0.00019506,2]
[365135902,1749484253548,-490.0,0.00019506,2]
[365135903,1749484253557,-490.0,0.00019506,2]
[365135904,1749484253567,-855.0,0.00019506,2]
[365135905,1749484253576,-588.55,0.00019506,2]
[365135906,1749484253585,-490.0,0.00019506,2]
[365135907,1749484253595,-490.0,0.00019506,2]
[365135908,1749484253605,-490.0,0.00019506,2]
[365135909,1749484253614,-490.0,0.00019506,2]
[365135910,1749484253623,-533.14,0.00019506,2]
[365135911,1749484253634,-490.0,0.00019506,2]
[365135912,1749484253643,-1503.0,0.00019506,2]
[365135913,1749484253653,-490.0,0.00019506,2]
[365135914,1749484253663,-558.97,0.00019506,2]
[365135915,1749484253672,-942.02,0.00019506,2]
[365135916,1749484253682,-1316.28,0.00019506,2]
[365135917,1749484253692,-490.0,0.00019506,2]
[365135918,1749484253702,-1244.55,0.00019506,2]
[365135919,1749484253712,-768.09,0.00019506,2]
[365135920,1749484253722,-490.0,0.00019506,2]
[365135921,1749484253732,-1295.21,0.00019506,2]
[365135922,1749484253741,-604.73,0.00019506,2]
[365135923,1749484253751,-490.0,0.00019506,2]
[365135924,1749484253760,-638.18,0.00019506,2]
[365135925,1749484253770,-490.0,0.00019506,2]
[365135926,1749484253779,-490.0,0.00019506,2]
[365135927,1749484253789,-490.0,0.00019506,2]
[365135928,1749484253798,-490.0,0.00019506,2]
[365135929,1749484253808,-1732.03,0.00019506,2]
[365135930,1749484253818,-490.0,0.00019506,2]
[365135931,1749484253827,-1661.45,0.00019506,2]
[365135932,1749484253837,-490.0,0.00019506,2]
[365135933,1749484253847,-490.0,0.00019506,2]
[365135934,1749484253856,-490.0,0.00019506,2]
[365135935,1749484253866,-1050.96,0.00019506,2]
[365135936,1749484253876,-490.0,0.00019506,2]
[365135937,1749484253886,-508.5,0.00019506,2]
[365135938,1749484253896,-490.0,0.00019506,2]
[365135939,1749484254190,-490.0,0.00019506,2]
[365135940,1749484254215,-490.0,0.00019506,2]
[365135941,1749484254226,-1042.74,0.00019506,2]
[365135942,1749484254236,-490.0,0.00019506,2]
[365135943,1749484254246,-1191.06,0.00019506,2]
[365135944,1749484254256,-490.0,0.00019506,2]
[365135945,1749484254266,-490.0,0.00019506,2]
[365135946,1749484254275,-490.0,0.00019506,2]
[365135947,1749484254285,-720.85,0.00019506,2]
[365135948,1749484254294,-490.0,0.00019506,2]
[365135949,1749484254304,-1088.63,0.00019506,2]
[365135950,1749484254313,-490.0,0.00019506,2]
[365135951,1749484254322,-1115.79,0.00019506,2]
[365135952,1749484254333,-745.96,0.00019506,2]
[365135953,1749484254342,-490.0,0.00019506,2]
[365135954,1749484254351,-490.0,0.00019506,2]
[365135955,1749484254361,-839.43,0.00019506,2]
[365135956,1749484254371,-490.0,0.00019506,2]
[365135957,1749484254381,-490.0,0.00019506,2]
[365135958,1749484254391,-490.0,0.00019506,2]
[365135959,1749484254400,-490.0,0.00019506,2]
[365135960,1749484254410,-490.0,0.00019506,2]
[365135961,1749484254420,-612.51,0.00019506,2]
[365135962,1749484254430,-490.0,0.00019506,2]
[365135963,1749484254439,-490.0,0.00019506,2]
[365135964,1749484254449,-1464.35,0.00019506,2]
[365135965,1749484254459,-656.71,0.00019506,2]
[365135966,1749484254469,-490.0,0.00019506,2]
[365135967,1749484254479,-490.0,0.00019506,2]
[365135968,1749484254489,-490.0,0.00019506,2]
[365135969,1749484254499,-490.0,0.00019506,2]
[365135970,1749484254509,-490.0,0.00019506,2]
[365135971,1749484254519,-653.19,0.00019506,2]
[365135972,1749484254529,-490.0,0.00019506,2]
[365135973,1749484254539,-836.11,0.00019506,2]
[365135974,1749484254549,-490.0,0.00019506,2]
[365135975,1749484254557,-747.68,0.00019506,2]
[365135976,1749484254566,-302.0914663,0.00019506,2]
[365135977,1749484254575,-376.32732262,0.00019506,2]
[365135978,1749484254584,-490.0,0.00019506,2]
[365135979,1749484254593,-1386.32,0.00019506,2]
[365135980,1749484254602,-490.0,0.00019506,2]
[365135981,1749484254611,-622.58,0.00019506,2]
[365135982,1749484254621,-840.09,0.00019506,2]
[365135983,1749484254630,-490.0,0.00019506,2]
[365135984,1749484254639,-490.0,0.00019506,2]
[365135985,1749484254647,-490.0,0.00019506,2]
[365135986,1749484254656,-1253.75,0.00019506,2]
[365135987,1749484254665,-490.0,0.00019506,2]
[365135988,1749484254674,-490.0,0.00019506,2]
[365135989,1749484254683,-616.12,0.00019506,2]
[365135990,1749484254692,-1148.42,0.00019506,2]
[365135991,1749484254702,-490.0,0.00019506,2]
[365135992,1749484254714,-490.0,0.00019506,2]
[365135993,1749484254723,-490.0,0.00019506,2]
[365135994,1749484254733,-1454.68,0.00019506,2]
[365135995,1749484254743,-885.02,0.00019506,2]
[365135996,1749484254753,-932.85,0.00019506,2]
[365135997,1749484254763,-516.27,0.00019506,2]
[365135998,1749484254772,-626.1,0.00019506,2]
[365135999,1749484254782,-925.04,0.00019506,2]
[365136000,1749484254791,-490.0,0.00019506,2]
[365136001,1749484254801,-490.0,0.00019506,2]
[365136002,1749484254811,-490.0,0.00019506,2]
[365136003,1749484254820,-751.13,0.00019506,2]
[365136004,1749484254830,-490.0,0.00019506,2]
[365136005,1749484254840,-490.0,0.00019506,2]
[365136006,1749484254850,-1608.62,0.00019506,2]
[365136007,1749484254859,-490.0,0.00019506,2]
[365136008,1749484254869,-789.96,0.00019506,2]
[365136009,1749484254879,-701.92,0.00019506,2]
[365136010,1749484254889,-490.0,0.00019506,2]
[365136011,1749484254899,-490.0,0.00019506,2]
[365136012,1749484254908,-250.0,0.00019506,2]
[365136013,1749484254918,-490.0,0.00019506,2]
[365136014,1749484254928,-660.29,0.00019506,2]
[365136015,1749484254938,-490.0,0.00019506,2]
[365136016,1749484254947,-985.49,0.00019506,2]
[365136017,1749484254957,-490.0,0.00019506,2]
[365136018,1749484254966,-490.0,0.00019506,2]
[365136019,1749484254977,-490.0,0.00019506,2]
[365136020,1749484254987,-592.63,0.00019506,2]
[365136021,1749484254996,-490.0,0.00019506,2]
[365136022,1749484255006,-490.0,0.00019506,2]
[365136023,1749484255016,-498.41,0.00019506,2]
[365136024,1749484255025,-1746.51,0.00019506,2]
[365136025,1749484255035,-490.0,0.00019506,2]
[365136026,1749484255044,-857.82,0.00019506,2]
[365136027,1749484255054,-490.0,0.00019506,2]
[365136028,1749484255065,-490.0,0.00019506,2]
[365136029,1749484255075,-728.46,0.00019506,2]
[365136030,1749484255084,-810.25,0.00019506,2]
[365136031,1749484255094,-490.0,0.00019506,2]
[365136032,1749484255103,-490.0,0.00019506,2]
[365136033,1749484255114,-1252.76,0.00019506,2]
[365136034,1749484255124,-490.0,0.00019506,2]
[365136035,1749484255134,-490.0,0.00019506,2]
[365136036,1749484255145,-490.0,0.00019506,2]
[365136037,1749484255155,-490.0,0.00019506,2]
[365136038,1749484255164,-490.0,0.00019506,2]
[365136039,1749484255174,-490.0,0.00019506,2]
[365136040,1749484255183,-490.0,0.00019506,2]
[365136041,1749484255193,-861.8,0.00019506,2]
[365136042,1749484255203,-490.0,0.00019506,2]
[365136043,1749484255214,-490.0,0.00019506,2]
[365136044,1749484255224,-490.0,0.00019506,2]
[365136045,1749484255234,-404.20082001,0.00019506,2]
[365136046,1749484255244,-4052.39,0.00019506,2]
[365136047,1749484255254,-490.0,0.00019506,2]
[365136048,1749484255264,-1000.0,0.00019506,2]
[365136049,1749484255273,-490.0,0.00019506,2]
[365136050,1749484255283,-490.0,0.00019506,2]
[365136051,1749484255293,-2952.28,0.00019506,2]
[365136052,1749484255302,-2088.03,0.00019506,2]
[365136053,1749484255312,-585.82,0.00019506,2]
[365136054,1749484255322,-539.15025998,0.00019506,2]
[365136055,1749484255331,-755.47,0.00019506,2]
[365136056,1749484255341,-1330.95,0.00019506,2]
[365136057,1749484255351,-490.0,0.00019506,2]
[365136058,1749484255360,-1446.22,0.00019506,2]
[365136059,1749484255370,-768.0,0.00019506,2]
[365136060,1749484255380,-2778.17,0.00019506,2]
[365136061,1749484255390,-490.0,0.00019506,2]
[365136062,1749484255400,-861.79,0.00019506,2]
[365136063,1749484255409,-1783.25,0.00019506,2]
[365136064,1749484255419,-1201.04,0.00019506,2]
[365136065,1749484255429,-652.76,0.00019506,2]
[365136066,1749484255439,-490.0,0.00019506,2]
[365136067,1749484255449,-2322.3,0.00019506,2]
[365136068,1749484255459,-490.0,0.00019506,2]
[365136069,1749484255468,-560.76,0.00019506,2]
[365136070,1749484255478,-532.57,0.00019506,2]
[365136071,1749484255488,-1345.62,0.00019506,2]
[365136072,1749484255498,-547.07,0.00019506,2]
[365136073,1749484255507,-490.0,0.00019506,2]
[365136074,1749484255517,-2978.42,0.00019506,2]
[365136075,1749484255527,-1466.43,0.00019506,2]
[365136076,1749484255537,-490.0,0.00019506,2]
[365136077,1749484255547,-863.07,0.00019506,2]
[365136078,1749484255557,-490.0,0.00019506,2]
[365136079,1749484255567,-540.06,0.00019506,2]
[365136080,1749484255577,-1727.77,0.00019506,2]
[365136081,1749484255587,-490.0,0.00019506,2]
[365136082,1749484255597,-508.87,0.00019506,2]
[365136083,1749484255607,-830.31,0.00019506,2]
[365136084,1749484255617,-926.28,0.00019506,2]
[365136085,1749484255626,-226.59042316,0.00019506,2]
[365136086,1749484255636,-490.0,0.00019506,2]
[365136087,1749484255646,-512.4,0.00019506,2]
[365136088,1749484255655,-582.22,0.00019506,2]
[365136089,1749484255665,-462.76820691,0.00019506,2]
[365136090,1749484255675,-490.0,0.00019506,2]
[365136091,1749484255684,-819.47,0.00019506,2]
[365136092,1749484255694,-1437.0,0.00019506,2]
[365136093,1749484255704,-490.0,0.00019506,2]
[365136094,1749484255713,-490.0,0.00019506,2]
[365136095,1749484255723,-1981.25,0.00019506,2]
[365136096,1749484255732,-1838.98,0.00019506,2]
[365136097,1749484255742,-496.24,0.00019506,2]
[365136098,1749484255751,-586.38,0.00019506,2]
[365136099,1749484255761,-933.86,0.00019506,2]
[365136100,1749484255771,-791.31,0.00019506,2]
[365136101,1749484255780,-490.0,0.00019506,2]
[365136102,1749484255789,-1691.22,0.00019506,2]
[365136103,1749484255799,-1698.4,0.00019506,2]
[365136104,1749484255808,-490.0,0.00019506,2]
[365136105,1749484255818,-490.0,0.00019506,2]
[365136106,1749484255827,-490.0,0.00019506,2]
[365136107,1749484255837,-1120.22,0.00019506,2]
[365136108,1749484255847,-490.0,0.00019506,2]
[365136109,1749484255857,-490.0,0.00019506,2]
[365136110,1749484255866,-1228.45,0.00019506,2]
[365136111,1749484255875,-490.0,0.00019506,2]
[365136112,1749484255884,-924.22,0.00019506,2]
[365136113,1749484255894,-153.97438381,0.00019506,2]
[365136114,1749484255904,-1153.63,0.00019506,2]
[365136115,1749484255914,-536.5100188,0.00019506,2]
[365136116,1749484255924,-490.0,0.00019506,2]
[365136117,1749484255934,-3242.29,0.00019506,2]
[365136118,1749484255943,-490.0,0.00019506,2]
[365136119,1749484255952,-490.0,0.00019506,2]
[365136120,1749484255962,-490.0,0.00019506,2]
[365136121,1749484255972,-580.55,0.00019506,2]
[365136122,1749484255982,-4278.52,0.00019506,2]
[365136123,1749484255991,-490.0,0.00019506,2]
[365136124,1749484256001,-1367.43,0.00019506,2]
[365136125,1749484256010,-490.0,0.00019506,2]
[365136126,1749484256020,-1055.16,0.00019506,2]
[365136127,1749484256031,-983.66,0.00019506,2]
[365136128,1749484256041,-490.0,0.00019506,2]
[365136129,1749484256052,-1100.11,0.00019506,2]
[365136130,1749484256063,-1457.54,0.00019506,2]
[365136131,1749484256073,-1103.83,0.00019506,2]
[365136132,1749484256082,-575.88,0.00019506,2]
[365136133,1749484256091,-490.0,0.00019506,2]
[365136134,1749484256100,-1070.28,0.00019506,2]
[365136135,1749484256110,-490.0,0.00019506,2]
[365136136,1749484256119,-490.0,0.00019506,2]
[365136137,1749484256129,-490.0,0.00019506,2]
[365136138,1749484256140,-1563.25,0.00019506,2]
[365136139,1749484256150,-529.1,0.00019506,2]
[365136140,1749484256159,-1313.97,0.00019506,2]
[365136141,1749484256169,-754.8,0.00019506,2]
[365136142,1749484256179,-1155.82,0.00019506,2]
[365136143,1749484256189,-1921.18,0.00019506,2]
[365136144,1749484256198,-674.02,0.00019506,2]
[365136145,1749484256208,-1823.89,0.00019506,2]
[365136146,1749484256218,-490.0,0.00019506,2]
[365136147,1749484256228,-1935.65,0.00019506,2]
[365136148,1749484256237,-490.0,0.00019506,2]
[365136149,1749484256247,-754.97,0.00019506,2]
[365136150,1749484256256,-2735.49,0.00019506,2]
[365136151,1749484256266,-1125.71,0.00019506,2]
[365136152,1749484256276,-490.0,0.00019506,2]
[365136153,1749484256285,-1594.53,0.00019506,2]
[365136154,1749484256295,-490.0,0.00019506,2]
[365136155,1749484256305,-1148.37,0.00019506,2]
[365136156,1749484256314,-644.87,0.00019506,2]
[365136157,1749484256323,-568.1,0.00019506,2]
[365136158,1749484256332,-527.56,0.00019506,2]
[365136159,1749484256342,-490.0,0.00019506,2]
[365136160,1749484256351,-2445.8,0.00019506,2]
[365136161,1749484256360,-490.0,0.00019506,2]
[365136162,1749484256369,-490.0,0.00019506,2]
[365136163,1749484256379,-490.0,0.00019506,2]
[365136164,1749484256388,-802.65,0.00019506,2]
[365136165,1749484256397,-490.0,0.00019506,2]
[365136166,1749484256407,-1070.34,0.00019506,2]
[365136167,1749484256416,-3180.99,0.00019506,2]
[365136168,1749484256426,-490.0,0.00019506,2]
[365136169,1749484256435,-490.0,0.00019506,2]
[365136170,1749484256444,-2198.03,0.00019506,2]
[365136171,1749484256454,-841.56,0.00019506,2]
[365136172,1749484256464,-490.0,0.00019506,2]
[365136173,1749484256473,-891.08,0.00019506,2]
[365136174,1749484256482,-1283.3,0.00019506,2]
[365136175,1749484256492,-898.27,0.00019506,2]
[365136176,1749484256501,-786.86,0.00019506,2]
[365136177,1749484256511,-511.0,0.00019506,2]
[365136178,1749484256520,-490.0,0.00019506,2]
[365136179,1749484256530,-490.0,0.00019506,2]
[365136180,1749484256539,-1000.0,0.00019506,2]
[365136181,1749484256611,-490.0,0.00019506,2]
[365136182,1749484256622,-742.75,0.00019506,2]
[365136183,1749484256631,-490.0,0.00019506,2]
[365136184,1749484256640,-1457.71,0.00019506,2]
[365136185,1749484256650,-21382.64,0.00019506,2]
[365136186,1749484256659,-3406.97,0.00019506,2]
[365136187,1749484256668,-490.0,0.00019506,2]
[365136188,1749484256677,-490.0,0.00019506,2]
[365136189,1749484256686,-433.27306489,0.00019506,2]
[365136190,1749484256695,-831.38,0.00019506,2]
[365136191,1749484256705,-490.0,0.00019506,2]
[365136192,1749484256714,-490.0,0.00019506,2]
[365136193,1749484256724,-490.0,0.00019506,2]
[365136194,1749484256733,-490.0,0.00019506,2]
[365136195,1749484256742,-1992.17,0.00019506,2]
[365136196,1749484256751,-385.72922742,0.00019506,2]
[365136197,1749484256760,-1233.07,0.00019506,2]
[365136198,1749484256770,-490.0,0.00019506,2]
[365136199,1749484256779,-900.38,0.00019506,2]
[365136200,1749484256788,-993.32,0.00019506,2]
[365136201,1749484256797,-617.75,0.00019506,2]
[365136202,1749484256807,-757.99,0.00019506,2]
[365136203,1749484256816,-1397.96,0.00019506,2]
[365136204,1749484256825,-1036.19,0.00019506,2]
[365136205,1749484256834,-1734.58,0.00019506,2]
[365136206,1749484256844,-490.0,0.00019506,2]
[365136207,1749484256853,-647.11,0.00019506,2]
[365136208,1749484256863,-902.56,0.00019506,2]
[365136209,1749484256872,-1999.21,0.00019506,2]
[365136210,1749484256881,-490.0,0.00019506,2]
[365136211,1749484256890,-1486.22,0.00019506,2]
[365136212,1749484256899,-1105.72,0.00019506,2]
[365136213,1749484256908,-1153.53,0.00019506,2]
[365136214,1749484256917,-459.43152586,0.00019506,2]
[365136215,1749484256927,-592.58,0.00019506,2]
[365136216,1749484256936,-819.89,0.00019506,2]
[365136217,1749484256946,-490.0,0.00019506,2]
[365136218,1749484256957,-2168.48,0.00019506,2]
[365136219,1749484256966,-5455.76,0.00019506,2]
[365136220,1749484256977,-490.0,0.00019506,2]
[365136221,1749484256986,-490.0,0.00019506,2]
[365136222,1749484256995,-490.0,0.00019506,2]
[365136223,1749484257005,-490.0,0.00019506,2]
[365136224,1749484257015,-490.0,0.00019506,2]
[365136225,1749484257024,-587.73,0.00019506,2]
[365136226,1749484257034,-963.69,0.00019506,2]
[365136227,1749484257043,-490.0,0.00019506,2]
[365136228,1749484257053,-490.0,0.00019506,2]
[365136229,1749484257065,-616.07,0.00019506,2]
[365136230,1749484257074,-932.52,0.00019506,2]
[365136231,1749484257084,-490.0,0.00019506,2]
[365136232,1749484257094,-970.65,0.00019506,2]
[365136233,1749484257104,-1348.63,0.00019506,2]
[365136234,1749484257114,-490.0,0.00019506,2]
[365136235,1749484257123,-2010.28,0.00019506,2]
[365136236,1749484257132,-2274.86,0.00019506,2]
[365136237,1749484257143,-597.2,0.00019506,2]
[365136238,1749484257153,-1654.18,0.00019506,2]
[365136239,1749484257162,-490.0,0.00019506,2]
[365136240,1749484257171,-680.18,0.00019506,2]
[365136241,1749484257180,-490.0,0.00019506,2]
[365136242,1749484257189,-279.08,0.00019506,2]
[365136243,1749484257198,-490.0,0.00019506,2]
[365136244,1749484257208,-1020.06,0.00019506,2]
[365136245,1749484257217,-6482.77,0.00019506,2]
[365136246,1749484257226,-490.0,0.00019506,2]
[365136247,1749484257237,-495.97,0.00019506,2]
[365136248,1749484257246,-568.64,0.00019506,2]
[365136249,1749484257256,-566.03,0.00019506,2]
[365136250,1749484257266,-490.0,0.00019506,2]
[365136251,1749484257275,-648.83,0.00019506,2]
[365136252,1749484257285,-559.89,0.00019506,2]
[365136253,1749484257294,-490.0,0.00019506,2]
[365136254,1749484257303,-490.0,0.00019506,2]
[365136255,1749484257312,-490.0,0.00019506,2]
[365136256,1749484257322,-490.0,0.00019506,2]
[365136257,1749484257331,-1324.97,0.00019506,2]
[365136258,1749484257340,-634.45,0.00019506,2]
[365136259,1749484257349,-490.0,0.00019506,2]
[365136260,1749484257358,-1450.67,0.00019506,2]
[365136261,1749484257367,-3127.54,0.00019506,2]
[365136262,1749484257376,-490.0,0.00019506,2]
[365136263,1749484257386,-490.0,0.00019506,2]
[365136264,1749484257395,-490.0,0.00019506,2]
[365136265,1749484257404,-725.47,0.00019506,2]
[365136266,1749484257413,-630.27,0.00019506,2]
[365136267,1749484257423,-658.35,0.00019506,2]
[365136268,1749484257432,-504.75,0.00019506,2]
[365136269,1749484257441,-490.0,0.00019506,2]
[365136270,1749484257450,-490.0,0.00019506,2]
[365136271,1749484257460,-562.05,0.00019506,2]
[365136272,1749484257471,-2331.33,0.00019506,2]
[365136273,1749484257480,-532.82,0.00019506,2]
[365136274,1749484257490,-1514.32,0.00019506,2]
[365136275,1749484257500,-510.61,0.00019506,2]
[365136276,1749484257509,-490.0,0.00019506,2]
[365136277,1749484257519,-583.42,0.00019506,2]
[365136278,1749484257529,-940.61,0.00019506,2]
[365136279,1749484257539,-490.0,0.00019506,2]
[365136280,1749484257548,-1252.98,0.00019506,2]
[365136281,1749484257557,-700.78,0.00019506,2]
[365136282,1749484257567,-1368.14,0.00019506,2]
[365136283,1749484257576,-179051.47415378,0.00019506,2]
[365136284,1749484257586,-1530.44192244,0.00019535,2]
[365136285,1749484257596,-200.0,0.00019563,2]
[365136286,1749484257605,-200.0,0.00019563,2]
[365136287,1749484257614,-1437.09,0.00019572,2]
[365136288,1749484257623,-209.41380085,0.00019573,2]
[365136289,1749484257633,-468.204754,0.00019599,2]
[365136290,1749484257642,-1530.44192244,0.00019626,2]
[365136291,1749484257651,-1012.49,0.0001967,2]
[365136292,1749484257660,-1012.49,0.0001967,2]
[365136293,1749484257670,-1012.49,0.0001967,2]
[365136294,1749484257679,-1437.09,0.0001967,2]
[365136295,1749484257689,-500.0,0.0001967,2]
[365136296,1749484257698,-500.0,0.0001967,2]
[365136297,1749484257707,-490.0,0.00019671,2]
[365136298,1749484257716,-490.0,0.00019671,2]
[365136299,1749484257726,-490.0,0.00019671,2]
[365136300,1749484257735,-490.0,0.00019671,2]
[365136301,1749484257744,-490.0,0.00019671,2]
[365136302,1749484257752,-216.477764,0.00019671,2]
[365136303,1749484257762,-490.0,0.00019671,2]
[365136304,1749484257771,-490.0,0.00019671,2]
[365136305,1749484257780,-490.0,0.00019671,2]
[365136306,1749484257789,-490.0,0.00019671,2]